[Event "Titled Tuesday Blitz March 07 Early 2023"]
[White "Ibarra Jerez, Jose Carlos"]
[Black "Dehtiarov, Roman"]
[WhiteFideId "2226332"]
[BlackFideId "14186640"]
[WhiteElo "2638"]
[BlackElo "2162"]
[Result "1-0"]
[Round "05"]
[TimeControl "180+2"]
[Date "2023.03.07"]
[WhiteClock "0:00:11"]
[BlackClock "0:00:03"]

1. e4 {[%clk 0:03:00]}  e5 {[%clk 0:02:59]} 2. Nf3 {[%clk 0:03:01]}  Nc6 {[%clk 0:02:59]} 3. Nc3 {[%clk 0:03:00]}  Nf6 {[%clk 0:02:58]} 4. h3 {[%clk 0:03:01]}  Bb4 {[%clk 0:02:55]} 5. Nd5 {[%clk 0:03:00]}  Bc5 {[%clk 0:02:52]} 6. c3 {[%clk 0:02:56]}  O-O {[%clk 0:02:48]} 7. d3 {[%clk 0:02:55]}  h6 {[%clk 0:02:46]} 8. b4 {[%clk 0:02:55]}  Bb6 {[%clk 0:02:46]} 9. a4 {[%clk 0:02:52]}  a6 {[%clk 0:02:45]} 10. Nxb6 {[%clk 0:02:46]}  cxb6 {[%clk 0:02:44]} 11. c4 {[%clk 0:02:46]}  d6 {[%clk 0:02:42]} 12. Ba3 {[%clk 0:02:38]}  b5 {[%clk 0:02:40]} 13. axb5 {[%clk 0:02:28]}  axb5 {[%clk 0:02:41]} 14. cxb5 {[%clk 0:02:28]}  Na7 {[%clk 0:02:28]} 15. Bb2 {[%clk 0:02:22]}  Bd7 {[%clk 0:02:27]} 16. Be2 {[%clk 0:02:12]}  Nxb5 {[%clk 0:02:24]} 17. O-O {[%clk 0:02:11]}  Qb6 {[%clk 0:02:21]} 18. Qd2 {[%clk 0:01:59]}  Nc7 {[%clk 0:02:09]} 19. Kh2 {[%clk 0:01:49]}  Ne6 {[%clk 0:02:08]} 20. Rfc1 {[%clk 0:01:45]}  Bb5 {[%clk 0:02:07]} 21. Bf1 {[%clk 0:01:39]}  Nf4 {[%clk 0:01:57]} 22. Kg1 {[%clk 0:01:16]}  Rac8 {[%clk 0:01:24]} 23. g3 {[%clk 0:01:13]}  Ne6 {[%clk 0:01:18]} 24. Kg2 {[%clk 0:00:52]}  Nh5 {[%clk 0:01:13]} 25. Qe3 {[%clk 0:00:44]}  Qd8 {[%clk 0:01:00]} 26. d4 {[%clk 0:00:35]}  Bxf1+ {[%clk 0:00:59]} 27. Kxf1 {[%clk 0:00:36]}  exd4 {[%clk 0:00:38]} 28. Nxd4 {[%clk 0:00:37]}  Nxd4 {[%clk 0:00:37]} 29. Bxd4 {[%clk 0:00:38]}  Qd7 {[%clk 0:00:37]} 30. Kg2 {[%clk 0:00:38]}  f5 {[%clk 0:00:30]} 31. Qf3 {[%clk 0:00:31]}  Rxc1 {[%clk 0:00:17]} 32. Rxc1 {[%clk 0:00:30]}  Qf7 {[%clk 0:00:18]} 33. exf5 {[%clk 0:00:25]}  Qxf5 {[%clk 0:00:19]} 34. Qxb7 {[%clk 0:00:16]}  Qg5 {[%clk 0:00:18]} 35. Rc7 {[%clk 0:00:13]}  Nf4+ {[%clk 0:00:18]} 36. Kh2 {[%clk 0:00:13]}  Ne6 {[%clk 0:00:19]} 37. Be3 {[%clk 0:00:13]}  Qg6 {[%clk 0:00:08]} 38. Rc8 {[%clk 0:00:12]}  Kh7 {[%clk 0:00:06]} 39. Rxf8 {[%clk 0:00:12]}  Nxf8 {[%clk 0:00:07]} 40. Qc6 {[%clk 0:00:12]}  Qe6 {[%clk 0:00:02]} 41. b5 {[%clk 0:00:13]}  Ng6 {[%clk 0:00:02]} 42. b6 {[%clk 0:00:12]}  Ne5 {[%clk 0:00:03]} 43. Qe4+ {[%clk 0:00:13]}  g6 {[%clk 0:00:02]} 44. b7 {[%clk 0:00:12]}  Qe8 {[%clk 0:00:03]} 45. Ba7 {[%clk 0:00:11]} 1-0


[Site "https://www.chess.com"]

[Event "Titled Tuesday Blitz March 07 Early 2023"]
[White "Mitrabha, Guha"]
[Black "Ozer, Omer Faruk"]
[WhiteFideId "5057000"]
[BlackFideId "6354564"]
[WhiteElo "2507"]
[BlackElo "2260"]
[Result "0-1"]
[Round "05"]
[TimeControl "180+2"]
[Date "2023.03.07"]
[WhiteClock "0:01:56"]
[BlackClock "0:01:07"]

1. c4 {[%clk 0:02:47]}  e5 {[%clk 0:02:59]} 2. Nc3 {[%clk 0:02:47]}  Bb4 {[%clk 0:02:59]} 3. Nd5 {[%clk 0:02:46]}  Be7 {[%clk 0:02:59]} 4. Nf3 {[%clk 0:02:46]}  d6 {[%clk 0:02:53]} 5. d4 {[%clk 0:02:44]}  c6 {[%clk 0:02:53]} 6. Nxe7 {[%clk 0:02:43]}  Qxe7 {[%clk 0:02:54]} 7. e3 {[%clk 0:02:43]}  Nf6 {[%clk 0:02:53]} 8. Be2 {[%clk 0:02:42]}  O-O {[%clk 0:02:53]} 9. O-O {[%clk 0:02:42]}  Nbd7 {[%clk 0:02:47]} 10. b3 {[%clk 0:02:38]}  e4 {[%clk 0:02:40]} 11. Nd2 {[%clk 0:02:37]}  Re8 {[%clk 0:02:41]} 12. a4 {[%clk 0:02:37]}  a5 {[%clk 0:02:20]} 13. Ba3 {[%clk 0:02:37]}  Nf8 {[%clk 0:02:17]} 14. Qc2 {[%clk 0:02:36]}  Bf5 {[%clk 0:02:16]} 15. Rfb1 {[%clk 0:02:35]}  Ne6 {[%clk 0:02:13]} 16. b4 {[%clk 0:02:34]}  g6 {[%clk 0:02:00]} 17. bxa5 {[%clk 0:02:32]}  Nxd4 {[%clk 0:01:57]} 18. Qd1 {[%clk 0:02:26]}  Nxe2+ {[%clk 0:01:53]} 19. Qxe2 {[%clk 0:02:26]}  Rxa5 {[%clk 0:01:53]} 20. Nb3 {[%clk 0:02:26]}  Rxa4 {[%clk 0:01:52]} 21. h3 {[%clk 0:02:21]}  Rea8 {[%clk 0:01:50]} 22. Bb2 {[%clk 0:02:20]}  Rxa1 {[%clk 0:01:50]} 23. Rxa1 {[%clk 0:02:21]}  Rxa1+ {[%clk 0:01:50]} 24. Bxa1 {[%clk 0:02:22]}  Nd7 {[%clk 0:01:42]} 25. Qb2 {[%clk 0:02:16]}  Ne5 {[%clk 0:01:42]} 26. c5 {[%clk 0:02:15]}  f6 {[%clk 0:01:41]} 27. cxd6 {[%clk 0:02:15]}  Qxd6 {[%clk 0:01:42]} 28. Nd4 {[%clk 0:02:15]}  b5 {[%clk 0:01:32]} 29. Qa2+ {[%clk 0:02:14]}  Kg7 {[%clk 0:01:28]} 30. Qa7+ {[%clk 0:02:09]}  Bd7 {[%clk 0:01:27]} 31. Bb2 {[%clk 0:02:09]}  b4 {[%clk 0:01:18]} 32. g3 {[%clk 0:01:58]}  c5 {[%clk 0:01:12]} 33. Nb3 {[%clk 0:01:56]}  Qd1+ {[%clk 0:01:08]} 34. Kg2 {[%clk 0:01:56]}  Nf3 {[%clk 0:01:07]} 0-1


[Site "https://www.chess.com"]

[Event "Titled Tuesday Blitz March 07 Early 2023"]
[White "Hamitevici, Vladimir"]
[Black "Yilmaz, Mustafa"]
[WhiteFideId "13902393"]
[BlackFideId "6302718"]
[WhiteElo "2401"]
[BlackElo "2523"]
[Result "1-0"]
[Round "05"]
[TimeControl "180+2"]
[Date "2023.03.07"]
[WhiteClock "0:00:19"]
[BlackClock "0:00:02"]

1. Nf3 {[%clk 0:02:52]}  c5 {[%clk 0:02:59]} 2. g3 {[%clk 0:02:51]}  Nc6 {[%clk 0:02:59]} 3. Bg2 {[%clk 0:02:51]}  g6 {[%clk 0:02:59]} 4. O-O {[%clk 0:02:49]}  Bg7 {[%clk 0:02:59]} 5. d3 {[%clk 0:02:41]}  d6 {[%clk 0:02:57]} 6. e4 {[%clk 0:02:34]}  Nf6 {[%clk 0:02:55]} 7. a4 {[%clk 0:02:30]}  O-O {[%clk 0:02:54]} 8. Nc3 {[%clk 0:02:28]}  Nd7 {[%clk 0:02:35]} 9. Bg5 {[%clk 0:02:23]}  Rb8 {[%clk 0:02:32]} 10. Qd2 {[%clk 0:02:10]}  a6 {[%clk 0:02:30]} 11. Rab1 {[%clk 0:02:04]}  b5 {[%clk 0:02:28]} 12. axb5 {[%clk 0:02:04]}  axb5 {[%clk 0:02:29]} 13. Nd5 {[%clk 0:02:05]}  Re8 {[%clk 0:02:12]} 14. b4 {[%clk 0:01:56]}  cxb4 {[%clk 0:02:07]} 15. Nxb4 {[%clk 0:01:57]}  Nxb4 {[%clk 0:01:56]} 16. Rxb4 {[%clk 0:01:57]}  Nc5 {[%clk 0:01:56]} 17. Rfb1 {[%clk 0:01:52]}  Bd7 {[%clk 0:01:39]} 18. Be3 {[%clk 0:01:51]}  Ra8 {[%clk 0:01:27]} 19. e5 {[%clk 0:01:38]}  Ra2 {[%clk 0:01:21]} 20. Bd4 {[%clk 0:01:17]}  Ne6 {[%clk 0:00:44]} 21. exd6 {[%clk 0:01:02]}  Nxd4 {[%clk 0:00:21]} 22. Nxd4 {[%clk 0:01:02]}  exd6 {[%clk 0:00:20]} 23. Bd5 {[%clk 0:00:53]}  Qc8 {[%clk 0:00:13]} 24. Bxa2 {[%clk 0:00:50]}  Qc5 {[%clk 0:00:09]} 25. Qf4 {[%clk 0:00:43]}  Rf8 {[%clk 0:00:06]} 26. Nxb5 {[%clk 0:00:37]}  Qxc2 {[%clk 0:00:05]} 27. Bc4 {[%clk 0:00:30]}  Be5 {[%clk 0:00:04]} 28. Qf3 {[%clk 0:00:28]}  Bf5 {[%clk 0:00:02]} 29. Nc7 {[%clk 0:00:20]}  h5 {[%clk 0:00:02]} 30. Nd5 {[%clk 0:00:19]} 1-0


[Site "https://www.chess.com"]

[Event "Titled Tuesday Blitz March 07 Early 2023"]
[White "Rastbod, Ali"]
[Black "Perez Ponsa, Federico"]
[WhiteFideId "12567477"]
[BlackFideId "117927"]
[WhiteElo "2211"]
[BlackElo "2592"]
[Result "1-0"]
[Round "05"]
[TimeControl "180+2"]
[Date "2023.03.07"]
[WhiteClock "0:00:49"]
[BlackClock "0:00:51"]

1. e4 {[%clk 0:03:00]}  c5 {[%clk 0:02:54]} 2. Nf3 {[%clk 0:03:00]}  d6 {[%clk 0:02:53]} 3. Bb5+ {[%clk 0:03:00]}  Nd7 {[%clk 0:02:52]} 4. c4 {[%clk 0:03:01]}  Nf6 {[%clk 0:02:52]} 5. Nc3 {[%clk 0:03:00]}  g6 {[%clk 0:02:51]} 6. d4 {[%clk 0:03:00]}  cxd4 {[%clk 0:02:50]} 7. Qxd4 {[%clk 0:02:51]}  Bg7 {[%clk 0:02:50]} 8. O-O {[%clk 0:02:47]}  O-O {[%clk 0:02:50]} 9. Bxd7 {[%clk 0:02:43]}  Bxd7 {[%clk 0:02:49]} 10. Bg5 {[%clk 0:02:42]}  Be6 {[%clk 0:02:42]} 11. Bxf6 {[%clk 0:02:19]}  Bxf6 {[%clk 0:02:42]} 12. Qd3 {[%clk 0:02:19]}  Rc8 {[%clk 0:02:41]} 13. b3 {[%clk 0:02:18]}  b5 {[%clk 0:02:16]} 14. Nxb5 {[%clk 0:02:17]}  Bxa1 {[%clk 0:02:15]} 15. Rxa1 {[%clk 0:02:18]}  Qb6 {[%clk 0:02:13]} 16. Nfd4 {[%clk 0:02:13]}  Bd7 {[%clk 0:02:13]} 17. Nc3 {[%clk 0:02:13]}  a5 {[%clk 0:02:11]} 18. h4 {[%clk 0:02:03]}  e6 {[%clk 0:02:10]} 19. Ndb5 {[%clk 0:01:57]}  Bxb5 {[%clk 0:02:09]} 20. Nxb5 {[%clk 0:01:58]}  Rfd8 {[%clk 0:02:07]} 21. Nc3 {[%clk 0:01:52]}  Qc5 {[%clk 0:02:06]} 22. Rd1 {[%clk 0:01:48]}  Qe5 {[%clk 0:02:06]} 23. g3 {[%clk 0:01:47]}  h5 {[%clk 0:02:06]} 24. f4 {[%clk 0:01:46]}  Qf6 {[%clk 0:02:05]} 25. Kg2 {[%clk 0:01:41]}  Kg7 {[%clk 0:02:05]} 26. Rd2 {[%clk 0:01:40]}  Rc5 {[%clk 0:02:03]} 27. e5 {[%clk 0:01:23]}  Qf5 {[%clk 0:01:57]} 28. Qxf5 {[%clk 0:01:22]}  gxf5 {[%clk 0:01:57]} 29. exd6 {[%clk 0:01:22]}  Kf8 {[%clk 0:01:54]} 30. Na4 {[%clk 0:01:21]}  Rc6 {[%clk 0:01:44]} 31. c5 {[%clk 0:01:21]}  Ke8 {[%clk 0:01:45]} 32. a3 {[%clk 0:01:18]}  Rb8 {[%clk 0:01:44]} 33. Rd3 {[%clk 0:01:18]}  Rb5 {[%clk 0:01:44]} 34. Rc3 {[%clk 0:01:10]}  Kd7 {[%clk 0:01:43]} 35. Kf3 {[%clk 0:01:08]}  Rc8 {[%clk 0:01:41]} 36. Ke3 {[%clk 0:01:04]}  Kc6 {[%clk 0:01:40]} 37. Kd4 {[%clk 0:01:02]}  Rcb8 {[%clk 0:01:40]} 38. Kc4 {[%clk 0:01:00]}  R5b7 {[%clk 0:01:36]} 39. Rd3 {[%clk 0:01:00]}  f6 {[%clk 0:01:32]} 40. Nb6 {[%clk 0:00:58]}  Rg8 {[%clk 0:01:09]} 41. b4 {[%clk 0:00:56]}  axb4 {[%clk 0:01:06]} 42. axb4 {[%clk 0:00:57]}  Rxb6 {[%clk 0:01:06]} 43. cxb6 {[%clk 0:00:56]}  Kxb6 {[%clk 0:01:07]} 44. d7 {[%clk 0:00:56]}  Kc7 {[%clk 0:00:56]} 45. Kc5 {[%clk 0:00:52]}  e5 {[%clk 0:00:56]} 46. b5 {[%clk 0:00:50]}  e4 {[%clk 0:00:53]} 47. b6+ {[%clk 0:00:50]}  Kd8 {[%clk 0:00:53]} 48. b7 {[%clk 0:00:49]}  Kc7 {[%clk 0:00:51]} 49. d8=Q+ {[%clk 0:00:49]} 1-0


[Site "https://www.chess.com"]

[Event "Titled Tuesday Blitz March 07 Early 2023"]
[White "Narayanan, Srinath"]
[Black "Malek, Jan"]
[WhiteFideId "5018420"]
[BlackFideId "21864080"]
[WhiteElo "2438"]
[BlackElo "2255"]
[Result "1-0"]
[Round "05"]
[TimeControl "180+2"]
[Date "2023.03.07"]
[WhiteClock "0:01:55"]
[BlackClock "0:00:43"]

1. Nf3 {[%clk 0:03:00]}  d5 {[%clk 0:02:58]} 2. g3 {[%clk 0:03:00]}  Bg4 {[%clk 0:02:56]} 3. Bg2 {[%clk 0:03:00]}  Nd7 {[%clk 0:02:55]} 4. d4 {[%clk 0:03:00]}  e6 {[%clk 0:02:54]} 5. O-O {[%clk 0:03:00]}  Bd6 {[%clk 0:02:53]} 6. c4 {[%clk 0:03:00]}  c6 {[%clk 0:02:53]} 7. Nbd2 {[%clk 0:02:59]}  f5 {[%clk 0:02:53]} 8. b3 {[%clk 0:02:59]}  Ngf6 {[%clk 0:02:52]} 9. Bb2 {[%clk 0:02:59]}  O-O {[%clk 0:02:51]} 10. Ne5 {[%clk 0:02:54]}  Bh5 {[%clk 0:02:51]} 11. Ndf3 {[%clk 0:02:53]}  Ne4 {[%clk 0:02:48]} 12. Nxd7 {[%clk 0:02:51]}  Qxd7 {[%clk 0:02:48]} 13. Qc2 {[%clk 0:02:50]}  f4 {[%clk 0:02:29]} 14. Rad1 {[%clk 0:02:32]}  Qe7 {[%clk 0:02:25]} 15. Ne5 {[%clk 0:02:27]}  Bxe5 {[%clk 0:01:59]} 16. Bxe4 {[%clk 0:02:27]}  dxe4 {[%clk 0:01:54]} 17. dxe5 {[%clk 0:02:27]}  f3 {[%clk 0:01:40]} 18. exf3 {[%clk 0:02:24]}  Bxf3 {[%clk 0:01:39]} 19. Rd4 {[%clk 0:02:16]}  Rf5 {[%clk 0:01:37]} 20. Qd2 {[%clk 0:02:04]}  Raf8 {[%clk 0:01:34]} 21. Rd7 {[%clk 0:02:01]}  Qe8 {[%clk 0:01:34]} 22. Ba3 {[%clk 0:01:59]}  Qh5 {[%clk 0:01:33]} 23. h4 {[%clk 0:01:58]}  Qg4 {[%clk 0:01:26]} 24. Kh2 {[%clk 0:01:58]}  Rh5 {[%clk 0:01:21]} 25. Be7 {[%clk 0:01:57]}  Re8 {[%clk 0:01:08]} 26. Rd8 {[%clk 0:01:56]}  Qg6 {[%clk 0:00:43]} 27. Qd7 {[%clk 0:01:55]} 1-0


[Site "https://www.chess.com"]

[Event "Titled Tuesday Blitz March 07 Early 2023"]
[White "Colas, Joshua"]
[Black "Yeletsky, Ivan"]
[WhiteFideId "2044447"]
[BlackFideId "24180327"]
[WhiteElo "2347"]
[BlackElo "2414"]
[Result "0-1"]
[Round "05"]
[TimeControl "180+2"]
[Date "2023.03.07"]
[WhiteClock "0:00:31"]
[BlackClock "0:01:01"]

1. Nf3 {[%clk 0:02:55]}  Nf6 {[%clk 0:02:58]} 2. c4 {[%clk 0:02:55]}  b6 {[%clk 0:02:58]} 3. g3 {[%clk 0:02:55]}  Bb7 {[%clk 0:02:56]} 4. Bg2 {[%clk 0:02:52]}  c5 {[%clk 0:02:56]} 5. O-O {[%clk 0:02:52]}  e6 {[%clk 0:02:56]} 6. d4 {[%clk 0:02:49]}  cxd4 {[%clk 0:02:55]} 7. Qxd4 {[%clk 0:02:50]}  Nc6 {[%clk 0:02:54]} 8. Qd2 {[%clk 0:02:47]}  Bb4 {[%clk 0:02:52]} 9. Qc2 {[%clk 0:02:44]}  O-O {[%clk 0:02:44]} 10. a3 {[%clk 0:02:44]}  Be7 {[%clk 0:02:29]} 11. b4 {[%clk 0:02:44]}  d5 {[%clk 0:02:29]} 12. Rd1 {[%clk 0:02:36]}  Rc8 {[%clk 0:02:26]} 13. cxd5 {[%clk 0:02:36]}  Nxb4 {[%clk 0:02:24]} 14. Qb3 {[%clk 0:02:27]}  Bxd5 {[%clk 0:02:12]} 15. Qa4 {[%clk 0:02:27]}  Nc2 {[%clk 0:02:11]} 16. Ra2 {[%clk 0:02:09]}  Bxa2 {[%clk 0:01:51]} 17. Rxd8 {[%clk 0:02:08]}  Rfxd8 {[%clk 0:01:51]} 18. Bd2 {[%clk 0:02:04]}  Bxb1 {[%clk 0:01:51]} 19. Qxa7 {[%clk 0:01:50]}  Bc5 {[%clk 0:01:44]} 20. Ne5 {[%clk 0:01:50]}  Rxd2 {[%clk 0:01:37]} 21. Qxf7+ {[%clk 0:01:47]}  Kh8 {[%clk 0:01:38]} 22. Qxe6 {[%clk 0:01:44]}  Rd1+ {[%clk 0:01:37]} 23. Bf1 {[%clk 0:01:44]}  Rf8 {[%clk 0:01:30]} 24. Nf7+ {[%clk 0:01:41]}  Rxf7 {[%clk 0:01:30]} 25. Qxf7 {[%clk 0:01:42]}  h6 {[%clk 0:01:20]} 26. e4 {[%clk 0:01:13]}  Ne3 {[%clk 0:01:06]} 27. fxe3 {[%clk 0:01:04]}  Bxe3+ {[%clk 0:01:02]} 28. Kg2 {[%clk 0:00:57]}  Bxe4+ {[%clk 0:01:03]} 29. Kh3 {[%clk 0:00:57]}  Rxf1 {[%clk 0:01:02]} 30. Qc4 {[%clk 0:00:48]}  Bf5+ {[%clk 0:01:01]} 31. g4 {[%clk 0:00:44]}  Bxg4+ {[%clk 0:01:01]} 32. Kg2 {[%clk 0:00:31]}  Rg1# {[%clk 0:01:01]} 0-1


[Site "https://www.chess.com"]

[Event "Titled Tuesday Blitz March 07 Early 2023"]
[White "Bharath Subramaniyam H"]
[Black "Melikyan, Gnel"]
[WhiteFideId "46634827"]
[BlackFideId "54109990"]
[WhiteElo "2395"]
[BlackElo "2138"]
[Result "1-0"]
[Round "05"]
[TimeControl "180+2"]
[Date "2023.03.07"]
[WhiteClock "0:00:44"]
[BlackClock "0:00:17"]

1. e4 {[%clk 0:02:58]}  e5 {[%clk 0:02:57]} 2. Nf3 {[%clk 0:02:57]}  Nf6 {[%clk 0:02:57]} 3. Bc4 {[%clk 0:02:54]}  Nxe4 {[%clk 0:02:45]} 4. Nc3 {[%clk 0:02:47]}  Nf6 {[%clk 0:02:43]} 5. Nxe5 {[%clk 0:02:38]}  d5 {[%clk 0:02:36]} 6. Bb3 {[%clk 0:02:38]}  Bd6 {[%clk 0:02:31]} 7. d4 {[%clk 0:02:37]}  c6 {[%clk 0:02:29]} 8. O-O {[%clk 0:02:36]}  O-O {[%clk 0:02:27]} 9. Bg5 {[%clk 0:02:33]}  h6 {[%clk 0:02:24]} 10. Bh4 {[%clk 0:02:32]}  Bf5 {[%clk 0:02:21]} 11. Qf3 {[%clk 0:02:30]}  Bh7 {[%clk 0:02:19]} 12. a4 {[%clk 0:02:02]}  Be7 {[%clk 0:02:12]} 13. a5 {[%clk 0:01:59]}  Nbd7 {[%clk 0:02:06]} 14. a6 {[%clk 0:01:58]}  Qc7 {[%clk 0:01:54]} 15. axb7 {[%clk 0:01:53]}  Qxb7 {[%clk 0:01:55]} 16. Nxc6 {[%clk 0:01:36]}  Qxc6 {[%clk 0:01:47]} 17. Nxd5 {[%clk 0:01:37]}  Qd6 {[%clk 0:00:25]} 18. Bg3 {[%clk 0:01:32]}  Qe6 {[%clk 0:00:26]} 19. Nc7 {[%clk 0:00:55]}  Qe4 {[%clk 0:00:25]} 20. Qxe4 {[%clk 0:00:54]}  Bxe4 {[%clk 0:00:22]} 21. Nxa8 {[%clk 0:00:54]}  Rxa8 {[%clk 0:00:22]} 22. Rfe1 {[%clk 0:00:53]}  Bf8 {[%clk 0:00:20]} 23. f3 {[%clk 0:00:48]}  Bf5 {[%clk 0:00:19]} 24. c4 {[%clk 0:00:44]}  Rb8 {[%clk 0:00:17]} 25. Bxb8 {[%clk 0:00:44]} 1-0


[Site "https://www.chess.com"]

[Event "Titled Tuesday Blitz March 07 Early 2023"]
[White "Di Nicolantonio, Lucas"]
[Black "Movahed, Sina"]
[WhiteFideId "680460"]
[BlackFideId "42520835"]
[WhiteElo "2358"]
[BlackElo "2225"]
[Result "1/2-1/2"]
[Round "05"]
[TimeControl "180+2"]
[Date "2023.03.07"]
[WhiteClock "0:00:12"]
[BlackClock "0:00:18"]

1. Nf3 {[%clk 0:03:00]}  Nf6 {[%clk 0:02:59]} 2. c4 {[%clk 0:03:00]}  g6 {[%clk 0:03:00]} 3. Nc3 {[%clk 0:03:00]}  Bg7 {[%clk 0:03:01]} 4. g3 {[%clk 0:03:01]}  O-O {[%clk 0:03:01]} 5. Bg2 {[%clk 0:03:02]}  d6 {[%clk 0:03:02]} 6. O-O {[%clk 0:03:01]}  e5 {[%clk 0:03:02]} 7. d3 {[%clk 0:03:01]}  Re8 {[%clk 0:03:01]} 8. b4 {[%clk 0:03:00]}  e4 {[%clk 0:03:00]} 9. dxe4 {[%clk 0:02:59]}  Nxe4 {[%clk 0:02:57]} 10. Nxe4 {[%clk 0:02:59]}  Rxe4 {[%clk 0:02:55]} 11. Rb1 {[%clk 0:02:55]}  Rxc4 {[%clk 0:02:47]} 12. Bg5 {[%clk 0:02:54]}  Qe8 {[%clk 0:02:44]} 13. Nd2 {[%clk 0:02:42]}  Rd4 {[%clk 0:02:14]} 14. Be3 {[%clk 0:02:40]}  Nc6 {[%clk 0:02:10]} 15. b5 {[%clk 0:02:20]}  Ne7 {[%clk 0:02:04]} 16. Bxd4 {[%clk 0:02:17]}  Bxd4 {[%clk 0:02:05]} 17. Ne4 {[%clk 0:02:12]}  Bg7 {[%clk 0:02:02]} 18. Qc1 {[%clk 0:01:53]}  Qd8 {[%clk 0:01:58]} 19. Rd1 {[%clk 0:01:48]}  h6 {[%clk 0:01:53]} 20. Nc5 {[%clk 0:01:40]}  Rb8 {[%clk 0:01:51]} 21. Qa3 {[%clk 0:01:22]}  Bf5 {[%clk 0:01:39]} 22. e4 {[%clk 0:01:19]}  Bg4 {[%clk 0:01:37]} 23. f3 {[%clk 0:01:17]}  Bd7 {[%clk 0:01:18]} 24. Nxd7 {[%clk 0:01:07]}  Qxd7 {[%clk 0:01:19]} 25. Qxa7 {[%clk 0:01:07]}  Qd8 {[%clk 0:01:18]} 26. f4 {[%clk 0:00:51]}  Kh7 {[%clk 0:01:02]} 27. e5 {[%clk 0:00:50]}  Qf8 {[%clk 0:00:54]} 28. b6 {[%clk 0:00:42]}  cxb6 {[%clk 0:00:47]} 29. Rxd6 {[%clk 0:00:37]}  Nf5 {[%clk 0:00:46]} 30. Rd7 {[%clk 0:00:15]}  Ne3 {[%clk 0:00:27]} 31. Rxf7 {[%clk 0:00:12]}  Qxf7 {[%clk 0:00:23]} 32. Qxb8 {[%clk 0:00:11]}  Nxg2 {[%clk 0:00:23]} 33. Kxg2 {[%clk 0:00:11]}  Qxa2+ {[%clk 0:00:23]} 34. Kh3 {[%clk 0:00:09]}  Qxb1 {[%clk 0:00:23]} 35. Qxb7 {[%clk 0:00:10]}  b5 {[%clk 0:00:22]} 36. e6 {[%clk 0:00:06]}  Qf5+ {[%clk 0:00:20]} 37. Kg2 {[%clk 0:00:07]}  Qxe6 {[%clk 0:00:19]} 38. Qxb5 {[%clk 0:00:07]}  Qe4+ {[%clk 0:00:20]} 39. Kh3 {[%clk 0:00:06]}  h5 {[%clk 0:00:19]} 40. Qd7 {[%clk 0:00:05]}  Qf5+ {[%clk 0:00:18]} 41. Qxf5 {[%clk 0:00:04]}  gxf5 {[%clk 0:00:19]} 42. Kg2 {[%clk 0:00:02]}  Bd4 {[%clk 0:00:17]} 43. Kf3 {[%clk 0:00:02]}  Kg6 {[%clk 0:00:18]} 44. h3 {[%clk 0:00:02]}  Bb6 {[%clk 0:00:18]} 45. g4 {[%clk 0:00:01]}  fxg4+ {[%clk 0:00:18]} 46. hxg4 {[%clk 0:00:02]}  h4 {[%clk 0:00:19]} 47. Kg2 {[%clk 0:00:03]}  Bc5 {[%clk 0:00:16]} 48. Kh3 {[%clk 0:00:03]}  Bf2 {[%clk 0:00:16]} 49. Kg2 {[%clk 0:00:02]}  Bg3 {[%clk 0:00:17]} 50. Kh3 {[%clk 0:00:03]}  Kf6 {[%clk 0:00:17]} 51. g5+ {[%clk 0:00:02]}  Kf5 {[%clk 0:00:17]} 52. g6 {[%clk 0:00:03]}  Kxg6 {[%clk 0:00:17]} 53. Kg2 {[%clk 0:00:04]}  Kf5 {[%clk 0:00:17]} 54. Kh1 {[%clk 0:00:05]}  Bf2 {[%clk 0:00:16]} 55. Kg2 {[%clk 0:00:05]}  Bd4 {[%clk 0:00:17]} 56. Kh1 {[%clk 0:00:06]}  Bf6 {[%clk 0:00:17]} 57. Kg2 {[%clk 0:00:07]}  Bd8 {[%clk 0:00:18]} 58. Kh1 {[%clk 0:00:08]}  Bc7 {[%clk 0:00:19]} 59. Kg2 {[%clk 0:00:08]}  Bxf4 {[%clk 0:00:20]} 60. Kh1 {[%clk 0:00:09]}  Kg4 {[%clk 0:00:21]} 61. Kg2 {[%clk 0:00:10]}  h3+ {[%clk 0:00:21]} 62. Kh1 {[%clk 0:00:11]}  h2 {[%clk 0:00:22]} 63. Kg2 {[%clk 0:00:12]}  h1=Q+ {[%clk 0:00:18]} 64. Kxh1 {[%clk 0:00:12]} 1/2-1/2


[Site "https://www.chess.com"]

[Event "Titled Tuesday Blitz March 07 Early 2023"]
[White "Pakleza, Zbigniew"]
[Black "Leiva, Gianmarco"]
[WhiteFideId "1119290"]
[BlackFideId "3804399"]
[WhiteElo "2410"]
[BlackElo "2345"]
[Result "0-1"]
[Round "05"]
[TimeControl "180+2"]
[Date "2023.03.07"]
[WhiteClock "0:00:01"]
[BlackClock "0:00:01"]

1. d4 {[%clk 0:03:00]}  Nf6 {[%clk 0:02:55]} 2. Nf3 {[%clk 0:03:00]}  d5 {[%clk 0:02:54]} 3. Bf4 {[%clk 0:03:00]}  e6 {[%clk 0:02:54]} 4. e3 {[%clk 0:03:00]}  Bd6 {[%clk 0:02:55]} 5. Bg3 {[%clk 0:03:01]}  c5 {[%clk 0:02:55]} 6. Nbd2 {[%clk 0:03:01]}  Qc7 {[%clk 0:02:54]} 7. Be2 {[%clk 0:02:59]}  Nbd7 {[%clk 0:02:53]} 8. c4 {[%clk 0:02:54]}  cxd4 {[%clk 0:02:41]} 9. Nxd4 {[%clk 0:02:54]}  Bxg3 {[%clk 0:02:40]} 10. hxg3 {[%clk 0:02:54]}  O-O {[%clk 0:02:39]} 11. O-O {[%clk 0:02:46]}  dxc4 {[%clk 0:02:35]} 12. Nxc4 {[%clk 0:02:45]}  Nb6 {[%clk 0:02:00]} 13. Nb5 {[%clk 0:02:19]}  Qe7 {[%clk 0:01:50]} 14. Nxb6 {[%clk 0:01:58]}  axb6 {[%clk 0:01:49]} 15. Qd6 {[%clk 0:01:50]}  Qxd6 {[%clk 0:01:23]} 16. Nxd6 {[%clk 0:01:51]}  Bd7 {[%clk 0:01:23]} 17. Nxb7 {[%clk 0:01:42]}  Bc6 {[%clk 0:01:24]} 18. Bf3 {[%clk 0:01:31]}  Bxf3 {[%clk 0:00:56]} 19. gxf3 {[%clk 0:01:32]}  Rab8 {[%clk 0:00:56]} 20. Nd6 {[%clk 0:01:31]}  Rfd8 {[%clk 0:00:57]} 21. Rfd1 {[%clk 0:01:31]}  Rd7 {[%clk 0:00:49]} 22. Nb5 {[%clk 0:01:20]}  Rbd8 {[%clk 0:00:45]} 23. Rxd7 {[%clk 0:01:12]}  Rxd7 {[%clk 0:00:46]} 24. Rc1 {[%clk 0:01:12]}  g5 {[%clk 0:00:47]} 25. Rc2 {[%clk 0:01:11]}  h5 {[%clk 0:00:43]} 26. Kg2 {[%clk 0:01:09]}  Rd1 {[%clk 0:00:42]} 27. a3 {[%clk 0:01:01]}  Kg7 {[%clk 0:00:37]} 28. Nc3 {[%clk 0:00:49]}  Rd3 {[%clk 0:00:30]} 29. Na4 {[%clk 0:00:39]}  Rd6 {[%clk 0:00:26]} 30. Nc3 {[%clk 0:00:27]}  Rd3 {[%clk 0:00:24]} 31. e4 {[%clk 0:00:23]}  Nd7 {[%clk 0:00:22]} 32. Rc1 {[%clk 0:00:17]}  Ne5 {[%clk 0:00:21]} 33. Rd1 {[%clk 0:00:07]}  Rxf3 {[%clk 0:00:11]} 34. Rd6 {[%clk 0:00:08]}  Rd3 {[%clk 0:00:05]} 35. Rxb6 {[%clk 0:00:07]}  Rd2 {[%clk 0:00:05]} 36. Kf1 {[%clk 0:00:05]}  Nd3 {[%clk 0:00:04]} 37. a4 {[%clk 0:00:02]}  Rxf2+ {[%clk 0:00:03]} 38. Kg1 {[%clk 0:00:03]}  Rc2 {[%clk 0:00:02]} 39. a5 {[%clk 0:00:03]}  Nxb2 {[%clk 0:00:01]} 40. Nb5 {[%clk 0:00:01]}  Nc4 {[%clk 0:00:02]} 41. Rb7 {[%clk 0:00:01]}  Rb2 {[%clk 0:00:01]} 0-1


[Site "https://www.chess.com"]